bitfinex/quotes_ETHUSD_20240701
["timestamp","ask_amount","ask_price","bid_price","bid_amount"]
[1719871549625,0.49984514,3463.2,3462.8,2.2825]
[1719871549952,2.88736,3463.4,3462.8,2.2825]
[1719871550111,0.49984536,3463.3,3462.8,2.2825]
[1719871550303,0.49984536,3463.2,3462.8,2.2825]
[1719871550506,0.49984536,3463.1,3462.8,2.2825]
[1719871550702,0.49984536,3463.3,3462.8,2.2825]
[1719871550918,0.49984536,3463.2,3462.8,2.2825]
[1719871551147,0.49984536,3463.3,3462.8,2.2825]
[1719871551442,0.49984536,3463.3,3462.9,0.05775325]
[1719871551647,0.49979305,3463.4,3462.9,0.05775325]
[1719871551828,7.48,3463.5,3463.0,2.88766]
[1719871552013,0.49979671,3463.4,3463.0,2.88766]
[1719871552338,2.88703,3463.8,3463.1,3.56095627]
[1719871552640,0.49977285,3463.7,3463.1,2.88756]
[1719871552950,0.49977285,3463.6,3463.1,2.88756]
[1719871553244,3.61611,3463.7,3462.8,6.276159]
[1719871553427,0.49979765,3463.6,3462.8,6.276159]
[1719871553833,0.49980201,3463.5,3462.8,6.276159]
[1719871554055,0.49980201,3463.4,3462.8,6.276159]
[1719871554262,0.49980201,3463.6,3462.8,6.276159]
[1719871554567,0.49980201,3463.6,3462.8,5.17031]
[1719871554922,2.3716,3463.4,3462.8,5.17031]
[1719871555124,0.49980201,3463.3,3462.8,2.88781]
[1719871556748,0.49983718,3463.2,3462.8,2.88781]
[1719871557060,0.49983718,3463.1,3462.8,2.88781]
[1719871557238,2.3716,3463.4,3462.8,2.88781]
[1719871557445,0.49983338,3463.3,3462.8,2.88781]
[1719871557783,0.49983338,3463.2,3462.8,2.88781]
[1719871557939,2.3716,3463.4,3462.8,2.88781]
[1719871558138,0.49982907,3463.3,3462.8,2.88781]
[1719871558357,0.49982907,3463.2,3462.8,2.88781]
[1719871558561,0.49982907,3463.3,3462.8,2.88781]
[1719871558941,0.231815,3463.2,3462.8,2.88781]
[1719871559257,0.499827,3463.1,3462.8,2.88781]
[1719871559457,0.231815,3463.1,3462.8,2.88781]
[1719871559869,2.3716,3463.4,3462.8,2.88781]
[1719871560033,0.231815,3463.0,3462.8,2.88781]
[1719871560228,2.3716,3463.4,3462.8,2.88781]
[1719871560434,0.231815,3462.9,3462.8,2.88781]
[1719871560673,2.3716,3463.4,3462.8,2.88781]
[1719871560886,0.231815,3462.9,3462.8,2.88781]
[1719871561170,2.3716,3463.4,3462.8,2.88781]
[1719871561329,1.33043057,3463.3,3462.8,2.88781]
[1719871561548,0.49982957,3463.2,3462.8,2.88781]
[1719871561885,0.49982957,3463.1,3462.8,2.88781]
[1719871562052,0.231815,3463.1,3462.8,2.88781]
[1719871562400,2.3716,3463.4,3462.8,2.88781]
[1719871562553,0.231815,3463.0,3462.8,2.88781]
[1719871562891,2.3716,3463.4,3462.8,2.88781]
[1719871563074,0.229815,3462.9,3462.8,2.88781]
[1719871563401,0.23174833,3462.9,3462.8,2.88781]
[1719871563689,2.3716,3463.4,3462.8,2.88781]
[1719871563903,0.23174833,3462.9,3462.8,2.88781]
[1719871564102,2.3716,3463.4,3462.8,2.88781]
[1719871564253,0.23174833,3462.9,3462.8,2.88781]
[1719871564598,0.23174833,3462.9,3462.7,3.0]
[1719871564766,4.11649674,3463.1,3462.7,3.0]
[1719871564966,0.73162585,3463.0,3462.7,3.0]
[1719871565178,0.49985674,3462.9,3462.7,3.0]
[1719871565564,3.61664,3463.1,3462.7,3.0]
[1719871565781,0.73163493,3463.0,3462.7,3.0]
[1719871565967,0.49987815,3462.9,3462.7,3.0]
[1719871566169,0.49987815,3462.8,3462.7,3.0]
[1719871566380,0.23176911,3462.8,3462.7,3.0]
[1719871566893,3.61644,3463.3,3462.7,3.0]
[1719871566894,2.88744,3463.3,3462.7,3.0]
[1719871567072,0.23176911,3462.8,3462.7,3.0]
[1719871567272,2.8875,3463.2,3462.7,3.0]
[1719871567477,0.23176911,3462.8,3462.7,3.0]
[1719871567671,2.8875,3463.2,3462.7,3.0]
[1719871567883,0.23176911,3462.8,3462.7,3.0]
[1719871568062,2.8875,3463.2,3462.7,3.0]
[1719871568263,0.23176911,3462.8,3462.6,2.888]
[1719871568460,2.8875,3463.2,3462.6,2.888]
[1719871569069,0.73162345,3463.1,3462.6,2.888]
[1719871569279,0.49985434,3463.0,3462.6,2.888]
[1719871569498,0.23176911,3463.1,3462.6,2.888]
[1719871569671,0.49985325,3463.0,3462.6,5.888]
[1719871569998,0.49985325,3462.9,3462.6,5.888]
[1719871570163,0.23176911,3463.0,3462.6,5.888]
[1719871570356,0.49985682,3462.9,3462.6,5.888]
[1719871570575,0.23176911,3462.8,3462.6,5.888]
[1719871570776,2.8875,3463.2,3462.6,5.888]
[1719871570963,0.7316266,3463.1,3462.6,5.888]
[1719871571159,0.49985749,3463.0,3462.6,3.0]
[1719871571612,0.7316266,3462.9,3462.6,3.0]
[1719871572121,0.23176911,3462.9,3462.6,3.0]
[1719871572487,0.23176911,3462.8,3462.6,3.0]
[1719871572687,3.6165,3463.2,3462.6,3.0]
[1719871572881,1.61517083,3463.1,3462.6,3.0]
[1719871573088,0.49986572,3463.0,3462.6,3.0]
[1719871573719,0.23176911,3462.9,3462.6,3.0]
[1719871574225,0.49988651,3462.8,3462.6,3.0]
[1719871574405,0.23176911,3462.9,3462.6,3.0]
[1719871574610,0.23169754,3462.7,3462.6,3.0]
[1719871574924,2.88767,3463.0,3462.6,3.0]
[1719871575135,0.49989604,3462.9,3462.6,3.0]
[1719871575323,0.73159358,3462.8,3462.6,3.0]
[1719871575489,0.23169754,3462.8,3462.6,3.0]
[1719871575683,2.88767,3463.0,3462.6,3.0]
[1719871575898,0.73159181,3462.9,3462.6,3.0]
[1719871576108,0.49989427,3462.8,3462.6,3.0]
[1719871576317,2.88767,3463.0,3462.6,3.0]
[1719871576499,0.7315882,3462.9,3462.6,3.0]
[1719871576727,0.49989066,3462.8,3462.6,3.0]
[1719871576930,0.49989066,3462.8,3462.2,5.2655]
[1719871576931,2.88799,3462.7,3462.2,5.2655]
[1719871577161,0.7315836,3462.6,3462.2,5.2655]
[1719871577308,0.23169294,3462.6,3462.3,0.05776283]
[1719871577507,2.88759,3463.1,3462.5,3.61708]
[1719871577722,0.73147858,3463.0,3462.4,2.2655]
[1719871577950,0.49986182,3462.9,3462.4,2.2655]
[1719871578311,0.23161676,3462.8,3462.4,5.15366]
[1719871578545,3.465091,3463.1,3462.4,5.15366]
[1719871578753,0.23161676,3463.0,3462.4,5.15366]
[1719871578911,0.73149425,3463.0,3462.4,5.15366]
[1719871579112,0.49987749,3462.9,3462.4,5.15366]
[1719871579650,0.23161676,3462.8,3462.4,5.15366]
[1719871580021,3.465091,3463.1,3462.4,5.15366]
[1719871580362,0.49988167,3463.0,3462.4,5.15366]
[1719871580559,0.73149843,3462.9,3462.4,5.15366]
[1719871580717,0.73149843,3462.9,3462.2,3.0]
[1719871580718,5.9839457,3462.9,3462.2,3.0]
[1719871580912,3.38772597,3462.8,3462.2,3.0]
[1719871581143,2.88784,3462.8,3462.2,3.0]
[1719871581443,0.73151775,3462.7,3462.2,3.0]
[1719871581649,0.23161676,3462.7,3462.2,3.0]
[1719871582227,0.23161676,3462.7,3462.3,2.88818]
[1719871582434,0.23161676,3462.7,3462.4,2.4384]
[1719871582751,0.2316029,3462.6,3462.4,2.4384]
[1719871582942,2.88767,3463.0,3462.4,2.4384]
[1719871583138,0.73149498,3462.9,3462.4,2.4384]
[1719871583343,0.2316029,3462.9,3462.4,2.4384]
[1719871584064,0.2316029,3462.9,3462.4,5.32655]
[1719871584853,0.49989508,3462.8,3462.4,5.32655]
[1719871585469,0.2316029,3462.7,3462.4,5.32655]
[1719871585770,0.49989508,3462.8,3462.4,5.32655]
[1719871586070,0.2316029,3462.7,3462.4,5.32655]
[1719871586437,0.2316029,3462.7,3462.2,3.0]
[1719871586438,2.81479508,3462.8,3462.2,3.0]
[1719871586649,0.2316029,3462.6,3462.2,3.0]
[1719871586858,0.87472147,3462.7,3462.2,3.0]
[1719871587034,0.64315551,3462.7,3462.2,3.0]
[1719871587236,0.23156596,3462.6,3462.2,3.0]
[1719871587890,0.729,3462.4,3461.8,2.8886]
[1719871588249,0.23154289,3462.3,3461.8,2.8886]
[1719871588635,0.23154289,3462.3,3461.7,5.3524]
[1719871588954,0.84695418,3462.3,3461.7,5.3524]
[1719871589131,3.73527418,3462.3,3461.7,5.3524]
[1719871590235,3.73527418,3462.3,3461.7,3.0]
[1719871592582,3.61739,3462.2,3461.7,3.0]
[1719871592897,0.729,3462.0,3461.7,3.0]
[1719871593304,2.88843,3462.1,3461.7,3.0]
[1719871593486,0.23141127,3461.9,3461.7,3.0]
[1719871593685,3.75819313,3462.1,3461.7,3.0]
[1719871593686,2.88843,3462.1,3461.7,3.0]
[1719871594209,0.23141127,3462.0,3461.7,3.0]
[1719871595475,2.88825,3462.3,3461.7,3.0]
[1719871595704,0.23130271,3461.9,3461.7,3.0]
[1719871595905,2.88825,3462.3,3461.7,3.0]
[1719871596101,0.23130271,3461.8,3461.7,3.0]
[1719871596305,3.61725,3462.3,3461.7,3.0]
[1719871596505,0.23130271,3461.8,3461.7,3.0]
[1719871596700,3.61725,3462.3,3461.7,3.0]
[1719871596902,0.23130271,3461.8,3461.7,3.0]
[1719871597395,3.61725,3462.3,3461.7,3.0]
[1719871597601,0.23130271,3462.2,3461.7,3.0]
[1719871599232,0.23130271,3462.2,3461.8,2.4221]
[1719871599629,3.61725,3462.3,3461.8,2.4221]
[1719871599824,0.23130271,3462.1,3461.8,2.4221]
[1719871600030,3.61725,3462.3,3461.7,3.0]
[1719871600211,0.23130271,3462.0,3461.7,3.0]
[1719871600416,3.61725,3462.3,3461.7,3.0]
[1719871600613,0.23130271,3461.9,3461.7,3.0]
[1719871600797,3.61725,3462.3,3461.7,3.0]
[1719871600998,0.23130271,3462.2,3461.7,3.0]
[1719871610483,0.729,3462.1,3461.7,3.0]
[1719871610959,0.23127271,3462.0,3461.7,3.0]
[1719871613429,0.50001767,3461.9,3461.7,3.0]
[1719871613635,0.23127271,3462.0,3461.7,3.0]
[1719871613850,0.50001844,3461.9,3461.7,3.0]
[1719871614163,0.729,3462.1,3461.7,3.0]
[1719871614366,0.73129166,3462.0,3461.7,3.0]
[1719871614571,0.50001895,3461.9,3461.7,3.0]
[1719871615074,0.23127271,3461.8,3461.7,3.0]
[1719871615364,0.729,3462.1,3461.7,3.0]
[1719871615569,0.73129378,3462.0,3461.7,3.0]
[1719871615733,0.50002107,3461.9,3461.7,3.0]
[1719871616171,0.23127271,3461.8,3461.7,3.0]
[1719871616569,0.729,3462.1,3461.7,3.0]
[1719871616788,0.50001947,3462.0,3461.7,3.0]
[1719871616962,0.73129218,3461.9,3461.7,3.0]
[1719871617292,0.23127271,3461.9,3461.7,3.0]
[1719871617657,0.729,3462.1,3461.7,3.0]
[1719871617858,0.23127271,3461.8,3461.7,3.0]
[1719871618082,0.729,3462.1,3461.7,3.0]
[1719871618283,0.23127271,3461.8,3461.7,3.0]
[1719871618479,0.729,3462.1,3461.7,3.0]
[1719871618788,0.50001513,3462.0,3461.7,3.0]
[1719871618975,0.73128784,3461.9,3461.4,2.88898]
[1719871619285,0.50001513,3461.8,3461.4,2.88898]
[1719871619992,0.23127271,3461.7,3461.4,2.88898]
[1719871620361,0.23124961,3461.6,3461.4,2.88898]
[1719871620688,3.61751,3462.0,3461.4,2.88898]
[1719871620855,0.23124961,3461.5,3461.4,2.88898]
[1719871621052,2.3652,3462.1,3461.3,3.0]
[1719871621256,2.3652,3462.1,3461.1,2.2509]
[1719871621257,0.729,3461.4,3461.1,2.2509]
[1719871621499,0.38492196,3461.3,3461.1,2.2509]
[1719871621654,0.23118723,3461.3,3461.1,2.2509]
[1719871622083,2.88897,3461.5,3461.1,2.2509]
[1719871622278,0.23117337,3461.2,3461.1,2.2509]
[1719871622476,2.88897,3461.5,3461.1,2.2509]
[1719871622706,0.23117337,3461.2,3461.1,2.2509]
[1719871622914,2.88897,3461.5,3461.1,2.2509]
[1719871623210,3.61776,3461.7,3461.1,2.2509]
[1719871623397,0.73118283,3461.6,3461.1,2.2509]
[1719871623589,0.23110407,3461.6,3461.1,2.2509]
[1719871624315,0.23110407,3461.6,3461.1,5.14015]
[1719871628980,0.23110407,3461.6,3461.1,5.096275]
[1719871633244,0.23110407,3461.6,3461.3,2.4193]
[1719871633424,2.88847,3462.1,3461.3,5.30833]
[1719871633623,4.34862619,3462.0,3461.3,5.30833]
[1719871633859,0.50004373,3461.9,3461.3,5.30833]
[1719871634161,2.92314373,3461.8,3461.1,2.88925]
[1719871634363,3.1521,3461.8,3461.1,2.88925]
[1719871634536,0.23107636,3461.7,3461.2,2.88917]
[1719871634734,3.11982636,3461.7,3461.0,5.30859]
[1719871636232,0.50008432,3461.6,3461.0,5.30859]
[1719871636454,0.23108329,3461.5,3461.0,5.30859]
[1719871636856,2.88875,3461.7,3461.0,5.30859]
[1719871637062,0.23108329,3461.4,3461.0,5.30859]
[1719871637250,0.50008515,3461.6,3461.0,5.30859]
[1719871637575,0.23108329,3461.3,3461.0,5.30859]
[1719871637778,2.88875,3461.7,3461.0,5.30859]
[1719871637939,0.23108329,3461.2,3461.0,5.30859]
[1719871638139,2.88875,3461.7,3461.0,5.30859]
[1719871638333,0.23108329,3461.1,3461.0,5.30859]
[1719871638535,2.88875,3461.7,3461.0,5.30859]
[1719871638735,2.88875,3461.7,3461.0,2.4193]
[1719871638736,0.23108329,3461.1,3461.0,2.4193]
[1719871639069,0.2310394,3461.1,3460.9,3.0]
[1719871639450,0.729,3461.4,3460.9,3.0]
[1719871639639,0.23103478,3461.0,3460.9,3.0]
[1719871639841,0.729,3461.4,3460.9,3.0]
[1719871640052,0.23103478,3461.0,3460.9,3.0]
[1719871640250,0.729,3461.4,3460.9,3.0]
[1719871640458,0.23103478,3461.0,3460.9,3.0]
[1719871640750,2.88893,3461.5,3460.9,3.0]
[1719871640954,0.23103478,3461.0,3460.9,3.0]
[1719871641133,2.88893,3461.5,3460.9,3.0]
[1719871641335,0.23103478,3461.0,3460.9,3.0]
[1719871641571,2.88893,3461.5,3460.9,3.0]
[1719871641777,0.23103478,3461.0,3460.9,3.0]
[1719871641984,2.88893,3461.5,3460.9,3.0]
[1719871642186,0.23103478,3461.0,3460.9,3.0]
[1719871642388,2.88893,3461.5,3460.9,3.0]
[1719871642549,0.23103478,3461.0,3460.9,3.0]
[1719871642743,4.11812586,3461.4,3460.9,3.0]
[1719871642744,3.61801,3461.4,3460.9,3.0]
[1719871642948,0.23098164,3461.0,3460.9,3.0]
[1719871643180,3.539696,3461.4,3460.9,3.0]
[1719871643181,2.88901,3461.4,3460.9,3.0]
[1719871643365,0.23098164,3461.0,3460.9,3.0]
[1719871643565,2.88901,3461.4,3460.9,3.0]
[1719871643771,0.23095854,3461.0,3460.9,3.0]
[1719871643984,2.88901,3461.4,3460.9,3.0]
[1719871644488,0.23095391,3461.3,3460.9,3.0]
[1719871645493,0.23092154,3461.2,3460.9,3.0]
[1719871645897,2.88897,3461.5,3460.9,3.0]
[1719871646067,0.23092154,3461.1,3460.9,3.0]
[1719871646265,2.88897,3461.5,3460.9,4.192376]
[1719871646595,0.23092154,3461.0,3460.9,3.0]
[1719871646795,2.88897,3461.5,3460.9,3.0]
[1719871646964,0.23092154,3461.0,3460.9,3.0]
[1719871647166,2.88897,3461.5,3460.9,3.0]
[1719871647365,0.23092154,3461.0,3460.9,3.0]
[1719871647556,2.88897,3461.5,3460.9,3.0]
[1719871647758,0.23092154,3461.0,3460.9,3.0]
[1719871648378,2.88897,3461.5,3460.9,3.0]
[1719871648696,0.50010074,3461.4,3460.9,3.0]
[1719871648993,0.23092154,3461.4,3460.9,3.0]
[1719871649671,2.55862154,3461.4,3460.9,3.0]
[1719871649996,0.50011209,3461.3,3460.9,3.0]
[1719871650209,3.28762154,3461.4,3460.9,3.0]
[1719871650498,0.73104667,3461.3,3460.9,3.0]
[1719871650698,0.23092616,3461.3,3460.9,3.0]
[1719871652690,2.88897,3461.5,3460.9,3.0]
[1719871652900,0.23092616,3461.2,3460.9,3.0]
[1719871653098,2.88897,3461.5,3460.9,3.0]
[1719871653313,0.23092616,3461.1,3460.9,3.0]
[1719871653525,0.729,3461.3,3460.9,3.0]
[1719871653799,0.23092616,3461.0,3460.9,3.0]
[1719871654014,2.88901,3461.4,3460.9,3.0]
[1719871654158,0.23092616,3461.0,3460.9,3.0]
[1719871654587,2.88901,3461.4,3460.9,3.0]
[1719871654896,0.73105757,3461.3,3460.9,3.0]
[1719871655202,0.50013141,3461.2,3460.9,3.0]
[1719871655648,0.23092616,3461.1,3460.9,3.0]
[1719871656125,2.88901,3461.4,3460.9,3.0]
[1719871656287,0.23092616,3461.0,3460.9,3.0]
[1719871656809,2.88901,3461.4,3460.9,3.0]
[1719871657021,0.73106161,3461.3,3460.9,3.0]
[1719871657221,0.50013545,3461.2,3460.9,3.0]
[1719871657423,0.23090306,3461.1,3460.9,3.0]
[1719871657598,2.88901,3461.4,3460.9,3.0]
[1719871657799,0.7310343,3461.3,3460.9,3.0]
[1719871658110,0.50013124,3461.2,3460.9,3.0]
[1719871658632,3.775128,3461.4,3460.9,3.0]
[1719871658633,0.23090306,3461.1,3460.9,3.0]
[1719871659135,0.23090306,3461.0,3460.9,3.0]
[1719871659335,2.88901,3461.4,3460.9,3.0]
[1719871659546,0.23090306,3461.0,3460.9,3.0]
[1719871659842,2.88901,3461.4,3460.9,3.0]
[1719871660020,0.50012488,3461.3,3460.9,3.0]
[1719871660215,0.23090306,3461.2,3460.9,3.0]
[1719871660516,2.88901,3461.4,3460.9,3.0]
[1719871660830,0.23090306,3461.1,3460.9,3.0]
[1719871661148,0.23090306,3461.0,3460.9,3.0]
[1719871661315,2.88901,3461.4,3460.9,3.0]
[1719871661506,0.23090306,3461.0,3460.9,3.0]
[1719871661707,2.88901,3461.4,3460.9,3.0]
[1719871661906,0.23090306,3461.0,3460.9,3.0]
[1719871662113,2.88901,3461.4,3460.9,3.0]
[1719871662322,0.23090306,3461.0,3460.9,3.0]
[1719871662526,2.88901,3461.4,3460.9,3.0]
[1719871662753,0.23090306,3461.0,3460.9,3.0]
[1719871663039,2.88901,3461.4,3460.9,3.0]
[1719871663201,0.23090306,3461.0,3460.9,3.0]
[1719871663408,2.88901,3461.4,3460.9,3.0]
[1719871663643,0.23090306,3461.0,3460.9,3.0]
[1719871664512,2.88901,3461.4,3460.9,3.0]
[1719871664722,0.23090306,3461.0,3460.9,3.0]
[1719871664946,2.88901,3461.4,3460.9,3.0]
[1719871665131,0.23090306,3461.0,3460.9,3.0]
[1719871665334,2.88901,3461.4,3460.9,3.0]
[1719871665645,0.50013696,3461.3,3460.9,3.0]
[1719871665841,0.50013696,3461.2,3460.9,3.0]
[1719871666015,0.23090306,3461.2,3460.9,3.0]
[1719871666531,0.23090306,3461.1,3460.9,3.0]
[1719871666956,2.889,3461.4,3460.9,3.0]
[1719871667168,0.23090306,3461.0,3460.9,3.0]
[1719871667342,2.889,3461.4,3460.9,3.0]
[1719871667537,0.23090306,3461.0,3460.9,3.0]
[1719871667736,2.889,3461.4,3460.9,3.0]
[1719871667949,0.23090306,3461.0,3460.9,3.0]
[1719871668441,0.23089846,3461.0,3460.9,3.0]
[1719871668643,0.729,3461.5,3460.9,3.0]
[1719871668978,0.73103008,3461.4,3460.9,3.0]
[1719871669138,0.50013162,3461.3,3460.9,3.0]
[1719871669338,0.50013162,3461.2,3460.9,3.0]
[1719871669637,0.23089846,3461.2,3460.9,3.0]
[1719871669838,3.61798,3461.5,3460.9,3.0]
[1719871670150,0.73102949,3461.4,3460.9,3.0]
[1719871670352,0.50013103,3461.3,3460.9,3.0]
[1719871670869,0.23089846,3461.2,3460.9,3.0]
[1719871671086,0.73102949,3461.2,3460.9,3.0]
[1719871671249,0.23089846,3461.1,3460.9,3.0]
[1719871671633,0.23089846,3461.0,3460.9,3.0]
[1719871672574,3.61798,3461.5,3460.9,3.0]
[1719871672763,0.23089846,3461.0,3460.9,3.0]
[1719871672970,3.61798,3461.5,3460.9,3.0]
[1719871673168,0.23089846,3461.0,3460.9,3.0]
[1719871673648,3.61798,3461.5,3460.9,3.0]
[1719871673856,0.73102908,3461.4,3460.9,3.0]
[1719871674038,0.50013062,3461.3,3460.9,3.0]
[1719871674474,0.50013062,3461.4,3460.9,3.0]
[1719871674682,0.23089846,3461.2,3460.9,3.0]
[1719871675070,0.23089846,3461.1,3460.9,3.0]
[1719871675439,0.23089846,3461.0,3460.9,3.0]
[1719871675882,3.61798,3461.5,3460.9,3.0]
[1719871676054,0.23089846,3461.0,3460.9,8.26018923]
[1719871676257,0.23089846,3461.0,3460.9,8.21082]
[1719871676468,2.88878,3461.7,3461.1,2.3214]
[1719871676674,0.82362919,3461.6,3461.1,2.3214]
[1719871676984,0.50010101,3461.5,3461.1,2.3214]
[1719871677142,0.50010101,3461.4,3461.1,2.3214]
[1719871677341,2.88878,3461.7,3461.1,2.3214]
[1719871677542,0.23093771,3461.3,3461.1,2.3214]
[1719871677755,2.88878,3461.7,3461.1,2.3214]
[1719871677956,0.23093771,3461.2,3461.1,2.3214]
[1719871678208,2.88878,3461.7,3461.1,2.3214]
[1719871678396,0.23093771,3461.2,3461.1,2.3214]
[1719871678547,2.88878,3461.7,3461.1,2.3214]
[1719871678883,0.23093771,3461.2,3461.1,2.3214]
[1719871679184,0.23093771,3461.6,3461.1,2.3214]
[1719871679396,0.50009101,3461.5,3461.1,2.3214]
[1719871679606,0.50009101,3461.4,3461.1,2.3214]
[1719871680311,0.23093771,3461.3,3461.1,2.3214]
[1719871680708,0.23093771,3461.2,3461.1,2.3214]
[1719871680910,3.61778,3461.7,3461.1,2.3214]
[1719871681062,0.23093771,3461.2,3461.1,2.3214]
[1719871681262,3.61778,3461.7,3461.1,2.3214]
[1719871681568,0.73103101,3461.6,3461.1,2.3214]
[1719871681768,0.5000933,3461.5,3461.1,2.3214]
[1719871682087,8.29452,3462.1,3461.2,2.88912]
[1719871682088,0.23093771,3461.4,3461.2,2.88912]
[1719871682388,3.0,3461.8,3461.2,2.88912]
[1719871682567,0.23093078,3461.3,3461.2,2.88912]
[1719871684013,0.729,3461.9,3461.2,2.88912]
[1719871684168,0.23093078,3461.3,3461.2,8.26359]
[1719871684372,0.729,3462.2,3461.5,2.88891]
[1719871684671,3.98116667,3462.1,3461.5,2.88891]
[1719871684982,1.22903132,3462.0,3461.5,2.88891]
[1719871685306,0.50004341,3461.9,3461.5,2.88891]
[1719871685464,0.50004341,3461.8,3461.5,2.88891]
[1719871685659,0.50004341,3461.9,3461.5,2.88891]
[1719871685884,0.50004341,3461.8,3461.5,2.88891]
[1719871686191,0.729,3462.0,3461.5,2.88891]
[1719871686391,0.50005016,3461.9,3461.5,2.88891]
[1719871686702,0.50005016,3461.8,3461.5,2.88891]
[1719871686927,0.50005016,3461.9,3461.5,2.88891]
[1719871688491,0.729,3462.0,3461.5,2.88891]
[1719871688690,0.50005235,3461.9,3461.5,2.88891]
[1719871688910,0.50005068,3461.8,3461.5,2.88891]
[1719871689117,0.729,3462.0,3461.5,2.88891]
[1719871689314,0.50005819,3461.9,3461.3,5.37432]
[1719871689535,0.50005819,3461.8,3461.3,5.37432]
[1719871689711,0.50005819,3461.9,3461.4,2.88899]
[1719871689917,0.50005602,3461.8,3461.4,2.88899]
[1719871690107,3.61751,3462.0,3461.4,2.88899]
[1719871690421,0.50005403,3461.9,3461.4,2.88899]
[1719871690600,0.50005403,3461.8,3461.4,2.88899]
[1719871690800,3.61751,3462.0,3461.4,2.88899]
[1719871691026,0.50005105,3461.9,3461.4,2.88899]
[1719871691230,0.50005105,3461.8,3461.4,2.88899]
[1719871691431,0.50005105,3461.9,3461.4,2.88899]
[1719871691630,3.61751,3462.0,3461.4,2.88899]
[1719871691798,0.50004894,3461.8,3461.4,2.88899]
[1719871692133,3.61751,3462.0,3461.4,2.88899]
[1719871692289,0.50005649,3461.9,3461.4,2.88899]
[1719871692489,0.50005649,3461.8,3461.4,2.88899]
[1719871692731,0.50005649,3461.9,3461.4,2.88899]
[1719871692935,0.50005649,3461.8,3461.4,2.88899]
[1719871693232,3.61751,3462.0,3461.4,2.88899]
[1719871693405,0.5000551,3461.9,3461.4,2.88899]
[1719871693590,0.5000551,3461.8,3461.4,2.88899]
[1719871693792,3.61751,3462.0,3461.4,2.88899]
[1719871694108,0.50005221,3461.9,3461.4,2.88899]
[1719871694291,0.50004436,3461.8,3461.4,2.88899]
[1719871694495,0.23098161,3461.9,3461.4,2.88899]
[1719871694496,3.61751,3462.0,3461.4,2.88899]
[1719871694699,0.73102037,3461.9,3461.4,2.88899]
[1719871695014,0.50005112,3461.8,3461.4,2.88899]
[1719871695218,0.23098161,3461.9,3461.4,2.88899]
[1719871695451,0.50005124,3461.8,3461.4,2.88899]
[1719871695644,0.23098161,3461.8,3461.4,2.88899]
[1719871695936,3.61751,3462.0,3461.4,2.88899]
[1719871696091,0.23098161,3461.7,3461.4,2.88899]
[1719871696289,3.61751,3462.0,3461.4,2.88899]
[1719871696493,0.73103296,3461.9,3461.4,2.88899]
[1719871696731,0.50005135,3461.8,3461.4,2.88899]
[1719871697110,0.23098161,3461.7,3461.4,2.88899]
[1719871697306,3.61751,3462.0,3461.4,2.88899]
[1719871697526,0.23098161,3461.6,3461.5,2.3253]
[1719871697835,3.61751,3462.0,3461.5,2.3253]
[1719871698030,0.23098161,3461.6,3461.5,2.3253]
[1719871698256,0.50004856,3461.9,3461.5,2.3253]
[1719871698418,0.23098161,3461.6,3461.5,2.3253]
[1719871698745,6.61733,3462.2,3461.5,5.21422]
[1719871698911,0.23098161,3461.6,3461.5,6.324541]
[1719871699095,12.7695,3462.8,3461.6,2.8888]
[1719871699300,3.61714,3462.5,3461.8,2.88861]
[1719871699500,0.50003133,3462.4,3461.8,2.88861]
[1719871699734,0.73101528,3462.3,3461.8,2.88861]
[1719871699933,0.23098395,3462.3,3461.8,2.88861]
[1719871700145,3.61714,3462.5,3461.8,2.88861]
[1719871700432,0.23098395,3462.2,3461.8,2.88861]
[1719871700635,3.61714,3462.5,3461.8,3.8828131]
[1719871700946,0.49998443,3462.4,3461.8,2.88861]
[1719871701142,0.49998443,3462.3,3461.8,2.88861]
[1719871701447,0.23098395,3462.4,3461.8,2.88861]
[1719871701649,0.49998209,3462.3,3461.8,2.88861]
[1719871701935,0.23098395,3462.3,3461.8,2.88861]
[1719871702135,3.61714,3462.5,3461.9,0.81604785]
[1719871702337,0.23098395,3462.2,3461.8,2.88861]
[1719871702644,3.61714,3462.5,3461.8,2.88861]
[1719871702799,0.49997602,3462.4,3461.8,2.88861]
[1719871702999,0.4999844,3462.3,3461.8,2.88861]
[1719871703212,3.61714,3462.5,3461.8,3.88858994]
[1719871703451,0.23106478,3462.2,3461.8,3.88858994]
[1719871703743,0.23106478,3462.1,3461.8,3.88858994]
[1719871703899,3.61714,3462.5,3461.8,3.88858994]
[1719871704100,0.49998482,3462.4,3461.8,2.88861]
[1719871704323,0.7310496,3462.3,3461.8,2.88861]
[1719871704548,0.23106478,3462.3,3461.8,2.88861]
[1719871704701,3.61714,3462.5,3461.8,2.88861]
[1719871704910,0.73104578,3462.4,3461.8,2.88861]
[1719871705119,0.23106478,3462.4,3461.8,2.88861]
[1719871706040,0.49998812,3462.3,3461.8,2.88861]
[1719871706242,0.23106478,3462.4,3461.8,2.88861]
[1719871706531,0.49998417,3462.3,3461.8,2.88861]
[1719871706695,0.23106478,3462.3,3461.8,2.88861]
[1719871707247,3.61714,3462.5,3461.8,2.88861]
[1719871707403,0.23106478,3462.2,3461.8,2.88861]
[1719871707598,3.61714,3462.5,3461.8,3.88858995]
[1719871707806,0.23106478,3462.1,3461.8,2.88861]
[1719871708000,3.61714,3462.5,3461.8,2.88861]
[1719871708323,0.23106478,3462.0,3461.8,2.88861]
[1719871708534,3.61714,3462.5,3461.8,2.88861]